bitfinex/quotes_ETHUSD_20240917
["timestamp","ask_amount","ask_price","bid_price","bid_amount"]
[1726553967585,2.3415,2304.6,2304.4,5.20745]
[1726553967895,2.3311,2304.8,2304.4,4.33952]
[1726553969823,2.3311,2304.8,2304.4,4.42630306]
[1726553970027,2.3311,2304.8,2304.5,4.33933]
[1726553970229,2.347,2305.0,2304.6,2.36658185]
[1726553970428,2.86485137,2305.2,2304.6,2.36658185]
[1726553970923,2.411,2305.2,2304.6,2.36658185]
[1726553971132,3.83672689,2305.2,2304.6,2.36658185]
[1726553971499,3.0,2305.1,2304.6,6.70570185]
[1726553971703,3.0,2305.1,2304.7,4.33893]
[1726553971906,3.0,2305.1,2304.7,4.4256988]
[1726553972316,3.0,2305.1,2304.8,0.08676882]
[1726553972630,3.0,2305.1,2304.7,4.42569882]
[1726553973428,3.0,2305.1,2304.7,0.08676882]
[1726553973734,3.0,2305.1,2304.6,6.70568888]
[1726553974826,3.0,2305.1,2304.6,7.44680233]
[1726553975194,3.0,2305.1,2304.6,7.35995345]
[1726553976521,4.33822,2305.1,2304.6,7.35995345]
[1726553977032,4.33822,2305.1,2304.6,11.69899345]
[1726553977193,4.33822,2305.1,2304.6,7.35995345]
[1726553978134,4.33822,2305.1,2304.6,7.35994345]
[1726553978334,4.33822,2305.1,2304.6,6.61883]
[1726553980237,0.04281094,2305.0,2304.6,6.61883]
[1726553981803,0.04281094,2305.0,2304.7,0.08676946]
[1726553982039,0.0383189,2305.3,2305.1,4.33809]
[1726553982246,0.0383189,2305.3,2305.2,0.433809]
[1726553982396,0.0383189,2305.3,2305.1,4.33809]
[1726553983110,0.0383189,2305.3,2305.2,4.33801]
[1726553983733,0.0383189,2305.3,2305.2,4.42475777]
[1726553984030,0.0383189,2305.3,2305.2,4.33801]
[1726553984229,0.0383189,2305.3,2305.2,4.42475628]
[1726553984394,0.0383189,2305.3,2305.2,5.45778432]
[1726553984599,0.0383189,2305.3,2305.2,12.15159432]
[1726553985533,0.0383189,2305.3,2305.2,12.06484799]
[1726553986843,7.47,2305.8,2305.6,6.66814]
[1726553987134,0.0383189,2306.0,2305.7,0.666814]
[1726553988950,2.4003,2305.9,2305.7,0.666814]
[1726553989110,2.4003,2305.9,2305.5,4.33741]
[1726553990697,2.4003,2305.9,2305.5,4.42414373]
[1726553991040,2.4003,2305.9,2305.5,4.33741]
[1726553992335,2.4003,2305.9,2305.5,4.42414378]
[1726553992544,2.4003,2305.9,2305.6,1.10401738]
[1726553995219,0.04119357,2305.8,2305.6,1.10401738]
[1726554000248,0.04119357,2305.8,2305.4,6.61601]
[1726554001154,4.3373,2305.6,2305.1,6.63598]
[1726554001446,2.2581,2305.7,2305.2,4.33791]
[1726554001619,0.04199463,2305.6,2305.2,9.773229]
[1726554001823,0.04199463,2305.6,2305.2,5.435319]
[1726554002821,4.37925463,2305.6,2305.2,1.097409]
[1726554003615,0.04199463,2305.6,2305.2,5.435409]
[1726554003847,0.04199463,2305.6,2305.3,0.67356599]
[1726554007034,0.04199463,2305.6,2305.3,5.01127599]
[1726554007661,4.37935463,2305.6,2305.1,2.2979]
[1726554007972,2.2894,2305.5,2305.0,4.33828]
[1726554008176,2.2894,2305.5,2305.1,4.33817]
[1726554008473,0.04175065,2305.4,2305.1,4.33817]
[1726554008844,0.04175065,2305.4,2305.2,4.33792]
[1726554009051,0.04175065,2305.4,2305.3,4.33783]
[1726554009253,2.2802,2305.7,2305.3,5.59063336]
[1726554009456,0.04104483,2305.6,2305.3,5.59063336]
[1726554009866,0.04104483,2305.6,2305.3,5.67737978]
[1726554010382,0.04104483,2305.6,2305.3,5.67722991]
[1726554010549,0.04104483,2305.6,2305.4,0.79618299]
[1726554010872,6.70323,2305.9,2305.4,0.79618299]
[1726554010873,2.3664,2305.9,2305.5,4.42414111]
[1726554011137,2.3664,2305.9,2305.5,6.69514111]
[1726554011273,2.3664,2305.9,2305.5,8.03476888]
[1726554011843,0.0383189,2306.0,2305.6,4.33726]
[1726554012048,0.0383189,2306.0,2305.6,4.42388518]
[1726554012495,0.0383189,2306.0,2305.6,4.33715]
[1726554012785,0.0383189,2306.0,2305.7,0.95152114]
[1726554012981,0.0383189,2306.0,2305.8,2.4143]
[1726554013950,0.0383189,2306.0,2305.8,6.75114]
[1726554014488,0.0383189,2306.0,2305.8,6.83778635]
[1726554014690,0.0383189,2306.0,2305.9,4.3367]
[1726554014902,0.0383189,2306.0,2305.9,5.70604411]
[1726554015104,0.0383189,2306.0,2305.9,1.36934411]
[1726554016011,0.0383189,2306.0,2305.9,5.70604411]
[1726554016502,0.0383189,2306.0,2305.9,11.69690413]
[1726554016869,0.0383189,2306.0,2305.9,13.02963109]
[1726554017059,0.0383189,2306.0,2305.9,15.02857488]
[1726554017400,7.47,2306.5,2306.4,4.33576]
[1726554017615,0.0383189,2306.7,2306.5,4.33545]
[1726554017898,0.0383189,2306.7,2306.6,10.32489239]
[1726554018625,0.0383189,2306.7,2306.6,12.80739239]
[1726554019308,0.0383189,2306.7,2306.6,23.46339964]
[1726554019519,0.0383189,2307.3,2307.2,6.65245]
[1726554019797,0.07897408,2307.3,2307.2,13.21937859]
[1726554020105,0.0383189,2307.3,2307.2,16.3612124]
[1726554020289,0.0383189,2307.3,2307.2,15.03379108]
[1726554020888,0.0383189,2307.3,2307.2,11.651945]
[1726554021305,0.07905377,2307.3,2307.2,11.651945]
[1726554021463,0.0383189,2307.3,2307.2,7.317695]
[1726554022115,0.0383189,2307.3,2307.2,4.999495]
[1726554026759,2.56493437,2307.8,2307.3,4.334]
[1726554027051,0.04387545,2307.7,2307.3,5.2673835]
[1726554027254,2.56493437,2307.8,2307.3,5.2673835]
[1726554027444,0.04074149,2307.7,2307.4,0.59326285]
[1726554027645,2.56493437,2307.8,2307.4,0.59326285]
[1726554027843,0.04074149,2307.7,2307.4,0.59326285]
[1726554028046,2.4566,2307.8,2307.4,0.59326285]
[1726554028418,0.04385533,2307.7,2307.4,0.59326285]
[1726554028615,2.58457668,2307.8,2307.4,0.59326285]
[1726554028820,2.52009607,2307.8,2307.3,0.9333835]
[1726554029416,6.85326607,2307.8,2307.3,0.9333835]
[1726554030782,2.52009607,2307.8,2307.3,5.2672835]
[1726554031075,2.4762424,2307.8,2307.3,5.2672835]
[1726554031573,0.04105258,2307.7,2307.3,5.2672835]
[1726554031775,0.09225264,2307.7,2307.4,0.59325285]
[1726554031948,2.4762424,2307.8,2307.4,0.59325285]
[1726554032133,0.09143846,2307.6,2307.4,0.59325285]
[1726554032477,0.09206093,2307.5,2307.4,0.59325285]
[1726554032646,2.4762424,2307.8,2307.4,0.59325285]
[1726554033053,0.09301592,2307.7,2307.4,0.59325285]
[1726554033244,2.4762424,2307.8,2307.4,0.59325285]
[1726554033555,0.09298709,2307.7,2307.4,0.59325285]
[1726554033951,2.4762424,2307.8,2307.4,0.59325285]
[1726554034153,0.09291391,2307.6,2307.4,2.87195285]
[1726554034354,2.4762424,2307.8,2307.4,2.87195285]
[1726554034548,0.09284072,2307.5,2307.4,2.87195285]
[1726554034769,2.4762424,2307.8,2307.4,2.87195285]
[1726554034968,0.0928984,2307.5,2307.4,2.87195285]
[1726554035297,0.08984624,2307.5,2307.4,2.87195285]
[1726554035576,2.4762424,2307.8,2307.4,0.59325285]
[1726554035779,0.08984624,2307.5,2307.4,0.59325285]
[1726554035982,2.4762424,2307.8,2307.4,4.92710285]
[1726554036483,0.0899926,2307.7,2307.4,4.92710285]
[1726554036651,2.4762424,2307.8,2307.4,4.92710285]
[1726554036977,0.08991943,2307.6,2307.4,4.92710285]
[1726554037175,2.4762424,2307.8,2307.4,4.92710285]
[1726554037386,0.08984624,2307.5,2307.4,4.92710285]
[1726554037539,2.4762424,2307.8,2307.4,4.92710285]
[1726554038067,0.08996377,2307.7,2307.4,4.33385]
[1726554038380,2.4762424,2307.8,2307.4,4.33385]
[1726554038541,0.08983291,2307.6,2307.4,4.33385]
[1726554038740,2.4762424,2307.8,2307.4,4.33385]
[1726554038957,0.08975972,2307.5,2307.4,4.33385]
[1726554039450,2.4762424,2307.8,2307.4,5.429675]
[1726554039652,0.0898174,2307.5,2307.4,4.33385]
[1726554039846,2.4762424,2307.8,2307.4,4.33385]
[1726554040179,0.09034525,2307.7,2307.4,4.33385]
[1726554040549,2.4762424,2307.8,2307.4,4.33385]
[1726554041065,0.09034525,2307.7,2307.4,4.33385]
[1726554041253,0.0196424,2307.8,2307.6,4.3335]
[1726554044875,0.0196424,2307.8,2307.6,8.667]
[1726554045096,0.0196424,2307.8,2307.6,4.3335]
[1726554045300,0.0196424,2307.8,2307.6,8.66689]
[1726554045504,0.0196424,2307.8,2307.6,9.79213524]
[1726554045699,0.0196424,2307.8,2307.7,4.33331]
[1726554045863,0.0196424,2307.8,2307.7,8.75327956]
[1726554046214,0.0196424,2307.8,2307.7,12.66749395]
[1726554046406,7.47,2308.2,2307.7,12.66749395]
[1726554046407,7.47,2308.2,2308.1,4.33256]
[1726554046609,2.4029,2308.4,2308.1,4.33256]
[1726554047009,6.7771007,2308.6,2308.1,4.33247]
[1726554047206,2.4454607,2308.6,2308.2,4.33232]
[1726554047395,2.4454607,2308.6,2308.1,4.33247]
[1726554047700,6.7771207,2308.6,2308.1,5.00956155]
[1726554049307,6.7771207,2308.6,2308.1,9.34202155]
[1726554049308,2.4454607,2308.6,2308.1,9.34202155]
[1726554049479,2.4454607,2308.6,2308.2,4.33233]
[1726554049679,2.4454607,2308.6,2308.3,1.36743516]
[1726554050316,2.4454607,2308.6,2308.3,5.69961516]
[1726554050474,0.0425607,2308.6,2308.3,4.33218]
[1726554050663,0.0425607,2308.6,2308.1,9.34194155]
[1726554050868,0.0425607,2308.6,2308.2,1.16937415]
[1726554052996,4.3741907,2308.6,2308.2,1.16937415]
[1726554053183,2.3039,2308.5,2308.2,1.16937415]
[1726554053385,6.63581,2308.5,2308.0,2.3518]
[1726554053587,4.3321,2308.4,2307.9,4.33283]
[1726554055115,6.63581,2308.5,2307.9,4.33283]
[1726554055419,0.07947701,2308.3,2308.0,4.995613]
[1726554055708,0.07940387,2308.2,2308.0,4.995613]
[1726554055910,6.63581,2308.5,2308.0,4.995613]
[1726554056255,0.07938838,2308.1,2308.0,4.995613]
[1726554056400,6.63581,2308.5,2308.0,4.995613]
[1726554056599,0.07935955,2308.1,2308.0,4.995613]
[1726554056803,6.63581,2308.5,2308.1,2.4138]
[1726554056977,6.63581,2308.5,2308.1,3.3466443]
[1726554057523,2.3039,2308.5,2308.1,7.6791443]
[1726554059193,2.3039,2308.5,2308.1,3.3466443]
[1726554059799,2.3039,2308.5,2308.2,0.54448529]
[1726554060536,4.33213,2308.4,2307.9,2.4715]
[1726554060751,6.63575,2308.5,2307.9,6.80433]
[1726554061794,10.96772,2308.5,2308.0,4.33273]
[1726554062018,6.63575,2308.5,2308.0,5.53665423]
[1726554062701,6.63575,2308.5,2308.0,5.53656423]
[1726554062900,0.0425607,2308.6,2308.1,4.33253]
[1726554063786,0.0425607,2308.6,2308.2,6.75815]
[1726554063901,0.0425607,2308.6,2308.2,8.08648642]
[1726554064107,0.0425607,2308.6,2308.2,8.05324968]
[1726554064426,4.3742607,2308.6,2308.2,3.72089968]
[1726554064639,4.3742607,2308.6,2308.0,5.53656423]
[1726554064800,2.3564,2308.4,2307.9,0.9020123]
[1726554065004,2.3726,2308.1,2307.7,0.9020123]
[1726554065202,2.3726,2308.1,2307.8,1.32777087]
[1726554065402,2.3726,2308.1,2307.7,1.27300077]
[1726554065735,2.3726,2308.1,2307.8,1.32809564]
[1726554065890,4.33313,2307.8,2307.5,0.9020123]
[1726554066091,4.3335,2307.6,2307.4,0.9020123]
[1726554066413,4.3335,2307.6,2307.3,1.35301845]
[1726554066414,4.33341,2307.7,2307.3,0.9020123]
[1726554066590,4.33341,2307.7,2307.4,1.3286521]
[1726554066929,4.33341,2307.7,2307.3,0.54123116]
[1726554067101,4.33341,2307.7,2307.4,1.32843191]
[1726554067291,4.33341,2307.7,2307.3,0.54123116]
[1726554067292,0.07957097,2307.6,2307.3,0.54123116]
[1726554067505,4.33341,2307.7,2307.3,0.54123116]
[1726554067707,0.07938113,2307.5,2307.3,0.54123116]
[1726554067932,4.33353,2307.6,2307.3,0.54123116]
[1726554068143,0.07930797,2307.4,2307.1,7.5074323]
[1726554068348,2.3411,2307.5,2307.1,4.33432]
[1726554068647,0.0792348,2307.3,2307.1,3.42609208]
[1726554068855,9.62648,2308.0,2307.2,1.41518476]
[1726554069152,3.38043808,2308.2,2307.2,1.41518476]
[1726554069153,2.2936,2308.2,2307.8,4.33311]
[1726554069312,2.3224,2308.5,2308.0,8.66537]
[1726554069648,0.0425607,2308.6,2308.1,4.41905876]
[1726554069821,0.0425607,2308.6,2308.2,0.87516888]
[1726554070025,4.3742107,2308.6,2308.2,0.87516888]
[1726554070223,8.7059407,2308.6,2308.2,0.87516888]
[1726554070442,0.07730453,2308.5,2308.0,8.75191876]
[1726554070736,0.07730453,2308.5,2308.0,4.41926876]
[1726554071118,0.07730453,2308.5,2308.0,8.75190876]
[1726554071351,0.07730453,2308.5,2308.1,4.33255]
[1726554071547,0.07730453,2308.5,2308.1,0.94193298]
[1726554072312,4.40914453,2308.5,2308.1,0.94193298]
[1726554072565,4.332,2308.4,2307.9,0.667511]
[1726554072718,6.59845,2308.3,2307.9,0.667511]
[1726554073056,4.33239,2308.2,2307.7,2.342]
[1726554073551,0.07715167,2308.1,2307.7,2.342]
[1726554073708,4.40984167,2308.1,2307.7,2.342]
[1726554073906,4.40984167,2308.1,2307.4,3.0]
[1726554073907,4.40984167,2308.1,2307.5,2.2728]
[1726554074111,4.40984167,2308.1,2307.5,2.711414]
[1726554074712,4.40984167,2308.1,2307.6,4.3335]
[1726554075149,4.40984167,2308.1,2307.5,7.045094]
[1726554075319,4.33276,2308.0,2307.5,2.711414]
[1726554075523,8.74274221,2308.0,2307.5,2.711414]
[1726554075838,4.40983221,2308.0,2307.5,2.711414]
[1726554076219,4.33314,2307.8,2307.3,0.48412768]
[1726554076749,4.4101054,2307.7,2307.3,0.48412768]
[1726554076921,0.0767754,2307.7,2307.3,0.48412768]
[1726554077123,4.33314,2307.8,2307.3,0.48412768]
[1726554077323,0.07669074,2307.6,2307.3,0.48412768]
[1726554077559,4.33314,2307.8,2307.3,0.48412768]
[1726554077762,0.07661758,2307.5,2307.2,6.77483]
[1726554077914,4.33334,2307.7,2307.2,4.33413]
[1726554078123,4.33334,2307.7,2307.0,5.5616723]
[1726554078124,0.07654441,2307.4,2307.0,4.65956]
[1726554078455,2.3648,2307.5,2307.1,4.0]
[1726554078614,0.07638085,2307.3,2307.0,0.3251]
[1726554078941,0.07620017,2307.2,2307.0,0.3251]
[1726554079249,6.6986,2307.5,2307.0,0.3251]
[1726554079563,6.6986,2307.5,2307.0,5.79099]
[1726554079722,0.07631454,2307.4,2307.0,5.79099]
[1726554081116,4.41036454,2307.4,2307.0,0.3251]
[1726554082152,0.07631454,2307.4,2307.0,0.3251]
[1726554082322,4.41022454,2307.4,2307.0,0.3251]
[1726554082563,4.33407,2307.3,2307.0,0.3251]
[1726554082762,0.07592308,2307.3,2307.0,0.3251]
[1726554083158,0.07592308,2307.3,2307.0,0.2751]
[1726554084364,0.07592308,2307.3,2307.0,5.735973]
[1726554084563,4.33361,2307.6,2307.0,5.735973]
[1726554084849,8.66723,2307.6,2307.0,5.735973]
[1726554085054,8.66728,2307.6,2307.0,4.60972]
[1726554085256,4.40625096,2307.5,2307.0,4.60972]
[1726554085456,0.07245096,2307.5,2307.0,4.60968]
[1726554085776,0.07245096,2307.5,2307.0,4.69635986]
[1726554085958,4.40617096,2307.5,2307.0,4.69635986]
[1726554086158,4.40617096,2307.5,2307.0,0.2751]
[1726554086861,5.28014906,2307.5,2307.0,0.2751]
[1726554087273,2.4109,2307.3,2307.0,0.2751]
[1726554087594,0.07330262,2307.2,2307.0,0.2751]
[1726554088093,4.3339,2307.4,2307.0,0.2751]
[1726554088298,0.07224461,2307.1,2307.0,0.2751]
[1726554088459,4.3339,2307.4,2307.0,0.2751]
[1726554088661,0.07337582,2307.3,2307.0,0.2751]
[1726554089197,0.07337582,2307.3,2307.0,4.60972]
[1726554089491,0.07337582,2307.3,2307.0,1.401332]
[1726554089695,6.67995,2307.5,2307.0,1.401332]
[1726554089895,0.07322372,2307.2,2307.0,1.401332]
[1726554090303,0.07315052,2307.1,2307.0,1.401332]
[1726554090464,6.67995,2307.5,2307.0,0.2751]
[1726554090657,4.33398,2307.4,2307.0,0.2751]
[1726554090885,4.4073501,2307.4,2307.0,0.2751]
[1726554094170,0.0733701,2307.4,2307.3,8.66814]
[1726554094499,7.4778962,2307.8,2307.5,4.33355]
[1726554094702,0.0078962,2307.8,2307.5,4.33355]
[1726554094905,0.0078962,2307.8,2307.5,4.42021156]
[1726554095110,0.0078962,2307.8,2307.5,5.60880212]
[1726554098204,0.0078962,2307.8,2307.7,2.3976]
[1726554100097,0.0078962,2307.8,2307.6,4.33337]
[1726554100301,0.07944282,2307.8,2307.6,4.33337]
[1726554100525,0.0078962,2307.8,2307.6,4.33337]
[1726554100818,0.07149318,2307.7,2307.5,3.57069056]
[1726554101022,0.07149318,2307.7,2307.5,7.90436056]
[1726554101181,0.0078962,2307.8,2307.5,7.90436056]
[1726554101400,0.07147345,2307.7,2307.5,7.90436056]
[1726554101600,0.0078962,2307.8,2307.5,1.18859056]
[1726554101800,0.07147345,2307.7,2307.4,4.3337]
[1726554102038,0.0078962,2307.8,2307.4,4.3337]
[1726554102517,0.07147345,2307.7,2307.4,4.3337]
[1726554102914,0.0078962,2307.8,2307.4,4.3337]
[1726554103512,0.07147345,2307.7,2307.4,4.3337]
[1726554103811,0.0078962,2307.8,2307.4,4.3337]
[1726554104008,4.40481345,2307.7,2307.3,2.2538]
[1726554105136,4.40481345,2307.7,2307.2,4.33412]
[1726554105345,8.73825345,2307.7,2307.1,4.33427]
[1726554105533,4.33351,2307.6,2307.1,4.33427]
[1726554106037,0.07116603,2307.5,2307.1,4.33427]
[1726554107109,0.07116603,2307.5,2307.0,11.38326]
[1726554107315,2.42876603,2307.5,2307.0,11.38326]
[1726554107550,2.42876603,2307.5,2307.0,4.60958]
[1726554107551,7.87203763,2307.5,2307.0,4.60958]
[1726554108958,7.87203763,2307.5,2307.0,8.9441]
[1726554109265,2.42876603,2307.5,2307.2,4.33425]
[1726554109445,0.07116603,2307.5,2307.3,2.4381]
[1726554109764,6.77874,2307.7,2307.3,2.4381]
[1726554109968,0.07110113,2307.6,2307.3,2.4381]
[1726554111765,0.07110113,2307.6,2307.2,4.33415]
[1726554117965,0.07110113,2307.6,2307.2,8.66829]
[1726554118339,0.07110113,2307.6,2307.3,4.33405]
[1726554119131,0.07110113,2307.6,2307.4,4.33388]
[1726554121438,0.07110113,2307.6,2307.3,4.33404]
[1726554121990,0.07110113,2307.6,2307.2,4.33414]
[1726554122506,0.07110113,2307.6,2307.2,8.66828]
[1726554122641,0.07110113,2307.6,2307.3,0.08667036]
[1726554123777,0.07110113,2307.6,2307.4,4.33384]
[1726554125171,0.0078962,2307.8,2307.5,4.33369]
[1726554125372,0.07128607,2307.7,2307.4,8.66761]
[1726554125572,0.07128607,2307.7,2307.4,4.33377]
[1726554125781,0.07121291,2307.6,2307.4,4.33377]
[1726554126077,0.0078962,2307.8,2307.4,4.33377]
[1726554126245,0.07116274,2307.5,2307.4,4.33377]
[1726554126449,0.0078962,2307.8,2307.4,4.33377]
[1726554126663,0.07014924,2307.5,2307.4,4.33377]
[1726554126868,0.0078962,2307.8,2307.5,4.33368]
[1726554129352,0.0078962,2307.8,2307.5,4.33354]
[1726554129551,0.0078962,2307.8,2307.6,4.33347]
[1726554130199,0.0078962,2307.8,2307.7,4.33331]
[1726554130501,0.0078962,2307.8,2307.7,14.48694153]
[1726554130654,0.0078962,2307.8,2307.7,16.93651546]
[1726554131058,0.0078962,2307.8,2307.7,16.03450316]
[1726554131457,0.0078962,2307.8,2307.7,16.03365338]
[1726554137910,0.07934749,2307.8,2307.7,16.03365338]
[1726554138088,0.0078962,2307.8,2307.7,16.03365338]
[1726554138586,0.07882531,2307.8,2307.7,16.03365338]
[1726554139084,0.07882531,2307.8,2307.7,5.88087163]
[1726554139411,0.07882531,2307.8,2307.7,10.08301653]
[1726554139788,0.07882531,2307.8,2307.7,8.75327456]
[1726554140005,0.07882531,2307.8,2307.7,8.66662]
[1726554140703,0.07882531,2307.8,2307.6,4.3334]
[1726554140900,2.44872531,2307.8,2307.5,4.33359]
[1726554153304,2.44872531,2307.8,2307.6,4.3335]
[1726554154238,0.07882531,2307.8,2307.6,4.3334]
[1726554154401,0.07882531,2307.8,2307.6,9.33918]
[1726554155000,0.07882531,2307.8,2307.6,5.00578]
[1726554155527,0.07882531,2307.8,2307.6,4.3334]
[1726554157319,0.07882531,2307.8,2307.6,8.6668]
[1726554157506,0.07882531,2307.8,2307.6,4.3334]
[1726554158112,0.07882531,2307.8,2307.6,8.6668]
[1726554158463,0.07882531,2307.8,2307.6,4.3334]
[1726554158750,0.07882531,2307.8,2307.6,8.6668]
[1726554158912,0.07882531,2307.8,2307.6,4.3334]
[1726554163662,2.2812,2307.7,2307.6,4.3334]
[1726554163831,2.34567472,2307.7,2307.6,4.3334]
[1726554167753,2.34567472,2307.7,2307.4,5.2357523]
[1726554168084,2.34567472,2307.7,2307.2,5.2361323]
[1726554168085,4.142285,2307.7,2307.2,5.2361323]
[1726554168244,4.142285,2307.7,2307.3,3.32854383]
[1726554168442,4.142285,2307.7,2307.2,9.5702423]
[1726554168751,4.142285,2307.7,2307.3,1.33147388]
[1726554168941,4.142285,2307.7,2307.3,4.33406]
[1726554169159,2.34567472,2307.7,2307.3,4.33406]
[1726554170656,2.34567472,2307.7,2307.4,4.33386]
[1726554172393,2.34567472,2307.7,2307.5,4.33367]
[1726554172715,0.06447472,2307.7,2307.6,4.3335]
[1726554172877,0.06447472,2307.7,2307.6,8.85756735]
[1726554173199,0.0078962,2307.8,2307.6,8.85756735]
[1726554173383,0.06424794,2307.7,2307.6,5.52998423]
[1726554173565,0.06424794,2307.7,2307.6,8.85750884]
[1726554173765,0.0078962,2307.8,2307.6,8.85750884]
[1726554173960,0.06424794,2307.7,2307.6,5.52998423]
[1726554174168,0.06424794,2307.7,2307.6,8.85754091]
[1726554174806,0.0078962,2307.8,2307.6,8.85754091]
[1726554175099,0.0642768,2307.7,2307.6,5.52998423]
[1726554175297,0.0078962,2307.8,2307.6,8.85747711]
[1726554175477,0.0078962,2307.8,2307.7,4.33331]
[1726554178132,0.0078962,2307.8,2307.7,12.08110305]
[1726554178447,0.0078962,2307.8,2307.7,13.73875145]
[1726554178652,0.0078962,2307.8,2307.7,11.65533171]
[1726554179162,2.4836962,2307.8,2307.6,4.33345]
[1726554182151,2.4836962,2307.8,2307.5,4.33357]
[1726554182354,2.4836962,2307.8,2307.6,1.33177722]
[1726554182662,2.4836962,2307.8,2307.5,4.33357]
[1726554183025,2.4733,2307.7,2307.4,0.9020123]
[1726554183269,2.4733,2307.7,2307.5,1.33208158]
[1726554183571,2.4196,2307.6,2307.3,0.9020123]
[1726554183729,2.4196,2307.6,2307.1,0.9020123]
[1726554183730,4.33398,2307.4,2307.1,0.9020123]
[1726554183931,2.4196,2307.3,2307.2,1.33264807]
[1726554184880,2.4196,2307.3,2307.2,3.33136101]
[1726554185177,2.4196,2307.3,2307.0,5.5117323]
[1726554185334,2.4196,2307.3,2307.1,3.33069951]
[1726554185673,2.4196,2307.3,2307.2,3.33086925]
[1726554185967,2.2895,2307.6,2307.2,3.33075291]
[1726554186182,2.2895,2307.6,2307.3,3.33075291]
[1726554186472,2.2895,2307.6,2307.4,1.33229401]
[1726554186627,2.2895,2307.6,2307.3,0.9020123]
[1726554186835,2.2895,2307.6,2307.4,3.33028888]
[1726554187055,2.2895,2307.6,2307.2,5.2360823]
[1726554187237,2.2895,2307.6,2307.3,3.33040165]
[1726554187445,2.2895,2307.6,2307.2,5.2360823]
[1726554187640,2.2895,2307.6,2307.3,3.3303654]
[1726554187837,2.2895,2307.6,2307.2,5.2360823]
[1726554188062,2.2895,2307.6,2307.3,3.33038998]
[1726554188264,2.2895,2307.6,2307.2,5.2360823]
[1726554188562,2.2895,2307.6,2307.3,3.33025748]
[1726554188765,2.2895,2307.6,2307.2,5.2360823]
[1726554188966,2.2895,2307.6,2307.3,3.33024118]
[1726554189175,2.2895,2307.6,2307.2,9.5702223]
[1726554189469,2.2895,2307.6,2307.3,3.33007806]
[1726554189671,2.2895,2307.6,2307.4,1.33203122]
[1726554189966,2.2895,2307.6,2307.2,9.5702223]
[1726554190285,0.06177857,2307.5,2307.3,3.32990832]
[1726554190476,0.06177857,2307.5,2307.4,1.33196333]
[1726554191333,0.06177857,2307.5,2307.1,5.2364023]
[1726554191535,2.4131,2307.4,2307.2,3.33012217]
[1726554191852,0.06171872,2307.3,2307.1,5.2364023]
[1726554192036,0.06171872,2307.3,2307.2,1.33209909]
[1726554192239,0.06171872,2307.3,2307.0,5.5116423]
[1726554192442,0.06171872,2307.3,2307.1,3.33014126]
[1726554192761,0.06171872,2307.3,2307.0,5.5116423]
[1726554192971,0.06171872,2307.3,2307.1,3.33004947]
[1726554193274,0.06171872,2307.3,2307.0,5.5116423]
[1726554193479,0.06171872,2307.3,2307.1,3.32978063]
[1726554193635,0.06171872,2307.3,2307.0,5.5116423]
[1726554193837,0.06171872,2307.3,2307.1,3.32965777]
[1726554194044,0.06171872,2307.3,2307.0,5.5116423]
[1726554194231,0.06171872,2307.3,2307.1,1.33178003]
[1726554194431,0.06171872,2307.3,2307.0,4.60963]
[1726554194755,0.06171872,2307.3,2307.1,1.3317346]
[1726554194957,0.06171872,2307.3,2307.0,4.60963]
[1726554195160,0.06171872,2307.3,2307.1,1.33169398]
[1726554195376,0.06171872,2307.3,2307.0,5.5116423]
[1726554195537,0.06171872,2307.3,2307.1,3.32879366]
[1726554195737,0.06171872,2307.3,2307.0,6.76690822]
[1726554196087,0.06171872,2307.3,2307.1,3.32886157]
[1726554196253,0.06171872,2307.3,2307.0,6.76690822]
[1726554196453,0.06171872,2307.3,2307.1,3.32855433]
[1726554196777,0.06171872,2307.3,2307.0,11.10143822]
[1726554196983,0.06171872,2307.3,2307.1,1.3314368]
[1726554197148,0.06171872,2307.3,2307.0,10.19942592]
[1726554197338,0.06171872,2307.3,2307.1,1.33138665]
[1726554197535,0.06171872,2307.3,2307.0,10.19942592]
[1726554197792,0.06171872,2307.3,2307.1,1.3313284]
[1726554198079,0.06171872,2307.3,2307.0,5.86489592]
[1726554198280,0.06171872,2307.3,2307.1,1.33127085]
[1726554198585,0.06171872,2307.3,2307.0,10.19942592]
[1726554198781,0.06171872,2307.3,2307.1,1.33124709]
[1726554198957,0.06171872,2307.3,2307.0,5.86489592]
[1726554199145,0.06171872,2307.3,2307.1,1.33124657]
[1726554199340,0.06171872,2307.3,2307.0,10.19942592]
[1726554199578,0.06171872,2307.3,2307.1,1.33121897]
[1726554199880,0.06171872,2307.3,2307.0,10.19942592]
[1726554200080,0.06171872,2307.3,2307.1,1.33112625]
[1726554200385,0.06171872,2307.3,2307.1,5.57764645]
[1726554201242,0.06171872,2307.3,2307.1,4.33439]
[1726554206191,0.06171872,2307.3,2307.0,4.60963]
[1726554206192,1.62297191,2307.3,2307.0,4.60963]
[1726554209262,1.62297191,2307.3,2307.0,0.2751]
[1726554209611,8.39159319,2307.1,2307.0,0.2751]
[1726554209958,8.4528173,2307.1,2307.0,0.2751]
[1726554211116,12.89563193,2307.1,2307.0,0.2751]
[1726554211324,8.56119193,2307.1,2307.0,0.2751]
[1726554211682,12.89563193,2307.1,2307.0,0.2751]
[1726554211885,17.18519512,2307.1,2307.0,0.2751]
[1726554212896,21.51963512,2307.1,2307.0,0.2751]
[1726554214222,22.06963512,2307.1,2307.0,0.2751]
[1726554215284,4.33606,2306.3,2305.8,0.0304746]
[1726554215486,1.56125319,2305.9,2305.8,0.0304746]
[1726554215716,0.05961008,2305.9,2305.8,0.0304746]
[1726554215925,2.4602,2306.1,2305.8,0.0304746]
[1726554216085,0.05942574,2306.0,2305.8,0.0304746]
[1726554218195,2.296,2305.9,2305.8,0.0304746]
[1726554218609,2.3554589,2305.9,2305.8,0.0304746]
[1726554222542,0.0594589,2305.9,2305.8,6.6881546]
[1726554223137,14.10297,2306.5,2305.9,4.33662]
[1726554223432,18.43867,2306.5,2305.9,0.66881546]
[1726554223600,14.10297,2306.5,2305.9,4.33669]
[1726554224494,4.33578,2306.4,2305.8,6.6880446]
[1726554224714,4.33578,2306.4,2305.8,7.79056406]
[1726554225009,14.10297,2306.5,2305.9,4.33669]
[1726554225893,18.43869,2306.5,2305.9,4.33669]
[1726554226300,4.33579,2306.4,2305.8,12.12733406]
[1726554226536,4.44419484,2306.4,2305.8,7.79056406]
[1726554226711,2.3556,2306.2,2305.8,0.0304746]
[1726554227116,2.3556,2306.2,2305.8,4.3673546]
[1726554229162,2.3556,2306.2,2305.8,8.7042346]